Cogmind - Beta 16 --- EXPLORER MODE // 2026.02.05 @ 19:38:12 Player: NeoBioHazard Result: Self-destructed Performance ------------- Evolutions (2) 1000 Regions Visited (3) 600 Robots Destroyed (27) 135 Value Destroyed (1144) 1144 Prototype IDs (12) 240 Alien Tech Used (0) 0 Bonus (0) 0 TOTAL SCORE: 3119 Bonus ------- None Cogmind --------- Core Integrity 469/550 Matter 300/300 Energy 42/265 System Corruption 3% Temperature Critical (502) Movement Treading (157) Location -8/Materials Parts ------- > --- POWER (1) -------- Improved Ion Engine > --- PROPULSION (2) --- Armored Treads Advanced Treads > --- UTILITY (7) ------ Medium Storage Unit Improved Terrain Scanner Seismic Detector Advanced Targeting Computer Reflective Plating > --- WEAPON (2) ------- Shock Rifle Subdweller Beam Cannon > --- INVENTORY (10) --- Improved Heat Sink Medium Storage Unit Improved Sensor Array Light Armor Plating Scrap Shield Subdweller Laser Assault Rifle Battle Rifle Subdweller Machine Gun Peak State ------------ > --- POWER ------------ Nuclear Core > --- PROPULSION ------- Armored Treads Advanced Treads > --- UTILITY ---------- Small Storage Unit Structural Scanner Improved Terrain Scanner Seismic Detector Advanced Targeting Computer Gun Armor Reflective Plating > --- WEAPON ----------- Shock Rifle Subdweller Beam Cannon > --- INVENTORY -------- Medium Storage Unit Light Armor Plating Scrap Shield Subdweller Laser Assault Rifle Battle Rifle Subdweller Machine Gun [Rating: 36] Favorites ----------- Power Ion Engine Engine Ion Engine Power Core Nuclear Core Propulsion Light Treads Treads Light Treads Leg Aluminum Leg Wheel Subdweller Monowheel Flight Unit Flight Unit Utility Structural Scanner Device Structural Scanner Storage Small Storage Unit Processor Advanced Targeting Computer Protection Gun Armor Weapon Medium Laser Energy Gun Medium Laser Energy Cannon Subdweller Beam Cannon Ballistic Gun Battle Rifle Build | -11 -10 -10 -8 ------- Run | Yrd Mat Sub Mat Slots Evolved 5 | . 1 . 4 Power . | . . . . Propulsion . | . . . . Utility 5 | . 1 . 4 Weapon . | . . . . Parts Attached 39 | 7 3 18 11 Power 7 | 1 . 4 2 Engine 6 | 1 . 4 1 Core 1 | . . . 1 Reactor . | . . . . Propulsion 7 | 2 . 3 2 Treads 3 | . . 1 2 Leg 2 | 2 . . . Wheel 1 | . . 1 . Hover . | . . . . Flight 1 | . . 1 . Utility 13 | 2 3 2 6 Device 5 | 1 1 1 2 Storage 3 | 1 1 . 1 Processor 2 | . . . 2 Hackware . | . . . . Protection 3 | . 1 1 1 Artifact . | . . . . Weapon 12 | 2 . 9 1 Energy Gun 5 | 1 . 3 1 Energy Cannon 1 | . . 1 . Ballistic Gun 6 | 1 . 5 . Ballistic Cannon . | . . . . Launcher . | . . . . Special Weapon . | . . . . Impact Weapon . | . . . . Slashing Weapon . | . . . . Piercing Weapon . | . . . . Special Melee Weapon . | . . . . Unidentified Prototypes . | . . . . Parts Lost 12 | . . 10 2 Power 3 | . . 3 . Propulsion 3 | . . 3 . Utility 2 | . . . 2 Weapon 4 | . . 4 . Highest Loss Streak 3 | . . 3 2 To Critical Strikes 1 | . . 1 . Average Backups 5 | . 4 5 7 Power . | . 1 . . Propulsion . | . . . . Utility 2 | . 1 2 3 Weapon 2 | . 1 2 4 Tool/Special . | . . . . Unused Backups 3 | . . . 3 Power . | . . . . Propulsion . | . . . . Utility 3 | . . . 3 Weapon . | . . . . Tool/Special . | . . . . Average Slot Usage (%) 86 | . 98 85 86 Engine 5 | . 12 5 1 Treads 9 | . . 9 15 Leg 4 | . 25 2 . Flight 1 | . . 2 . Device 17 | . 21 16 18 Storage 10 | . 12 11 8 Processor 1 | . . . 9 Protection 6 | . 1 6 8 Energy Gun 11 | . 12 12 6 Energy Cannon 4 | . . 4 8 Ballistic Gun 10 | . 12 12 1 Peak Build Rating 36 | 7 8 21 36 Average Rating 14 | 4 7 13 27 On Entrance 8 | . 7 8 19 Avg Prop Armor Cover (%) 3 | . . 3 . Naked Turns . | . . . . Heaviest Build 35 | 20 20 29 35 Greatest Support 42 | 20 20 20 42 Greatest Overweight (x) 4 | 1 . 4 1 Average Overweight (x) . | . . . . Largest Inventory Capacity 10 | 10 10 8 10 Average Capacity 8 | 8 7 8 9 Most Carried 10 | 2 5 8 10 Average Carried 6 | . 4 6 8 Final Capacity 10 | 10 8 8 10 Final Carried 10 | 2 5 8 10 Class Distribution -------------------- 70% | Hacker-Mutant 29% | Hacker-Skirmisher Dominant Class ---------------- Hacker-Mutant | -10/Materials Hacker-Mutant | -10/Subcaves Hacker-Mutant | -8/Materials Resources | -11 -10 -10 -8 ----------- Run | Yrd Mat Sub Mat Matter Collected 885 | 221 115 429 120 Remotely . | . . . . Salvage Created 1211 | . 142 749 320 Parts 66 | . 8 43 15 Haulers Intercepted . | . . . . Recyclers Shooed . | . . . . Parts Field Recycled . | . . . . Retrieved Matter . | . . . . Parts Self-Destructed . | . . . . Prevented . | . . . . Parts Restored . | . . . . Kills | -11 -10 -10 -8 ------- Run | Yrd Mat Sub Mat Combat Hostiles Destroyed 25 | . 2 17 6 Guns 18 | . 2 15 1 Cannons 6 | . . 2 4 Classes Destroyed 5 | . 2 3 . Watcher 2 | . 2 . . Swarmer 1 | . . 1 . Grunt 5 | . 2 . 3 Sentry 4 | . . 1 3 Subdweller 15 | . . 15 . Best Kill Streak 4 | . 2 4 3 Combat Bots Only 4 | . 2 4 3 Max Kills in Single Turn 1 | . 1 1 1 Gunslinging . | . . . . Exploded . | . . . . Melee . | . . . . Uniques/NPCs Destroyed . | . . . . Combat | -11 -10 -10 -8 -------- Run | Yrd Mat Sub Mat Hostile Shots Fired 182 | . 8 122 52 Missed 58 | . 1 50 7 Hits 124 | . 7 72 45 Melee 10 | . . . 10 Projectile 114 | . 7 72 35 AOE 4 | . . 4 . Critical Strikes 4 | . 1 1 2 Damage Taken 1690 | . 59 1140 491 Core 317 | . 15 221 81 Absorbed by Shields . | . . . . Ignored by Resistances 1016 | . 38 618 360 Core Remaining (%) 52 | 100 . 5 . Volleys Fired 114 | . 12 78 24 Largest 4 | . 2 4 2 Hottest 200 | . 70 200 130 Shots Fired 233 | . 24 168 41 Gun 198 | . 24 150 24 Cannon 35 | . . 18 17 Launcher . | . . . . Special . | . . . . Kinetic 95 | . 12 83 . Thermal 92 | . 12 63 17 Explosive . | . . . . Electromagnetic 46 | . . 22 24 Robot Hit Streak 54 | . 9 54 25 Robot Miss Streak 2 | . 2 1 1 Penetration Max . | . . . . Secondary Targets 2 | . . 2 . Max Gunslinging Chain 1 | . . 1 . Shots Hit Robots 165 | . 16 114 35 Core Hits 53 | . 7 33 13 Critical Kills 1 | . . 1 . Critical Parts Destroyed . | . . . . Critical Strikes 6 | . 1 4 1 Burn 2 | . 1 1 . Destroy 3 | . . 3 . Corrupt 1 | . . . 1 Melee Attacks . | . . . . Impact . | . . . . Slashing . | . . . . Piercing . | . . . . Sneak Attacks . | . . . . Combat Hostiles . | . . . . Follow-up Attacks . | . . . . Damage Inflicted 2556 | . 192 1593 771 Guns 1960 | . 192 1445 323 Cannons 596 | . . 148 448 Explosions . | . . . . Melee . | . . . . Ramming . | . . . . Kinetic 974 | . 93 881 . Thermal 1089 | . 99 542 448 Explosive . | . . . . Electromagnetic 493 | . . 170 323 Impact . | . . . . Slashing . | . . . . Piercing . | . . . . Highest Corruption 3 | . . . 3 Average Corruption 1 | . . . 1 Corruption Purged . | . . . . Corruption Blocked . | . . . . Overload Shots . | . . . . Overflow Damage . | . . . . Projectiles . | . . . . Explosions . | . . . . Melee . | . . . . Knockbacks . | . . . . Impact . | . . . . Kinetic . | . . . . Secondary . | . . . . Self-Inflicted Damage . | . . . . Shots . | . . . . Rammed . | . . . . Targets Rammed . | . . . . Kicked . | . . . . Crushed . | . . . . Highest Temperature 502 | . 129 75 502 Average Temperature 83 | . 47 27 129 Received Heat Transfer 504 | . 75 186 243 Effects 3 | . . . 3 Damage (major) 3 | . . . 3 Siege Activations . | . . . . Martial Activations . | . . . . Shielding Activations . | . . . . Robots Disrupted . | . . . . Combat Hostiles . | . . . . Robots Corrupted 1 | . . . 1 Combat Hostiles 1 | . . . 1 Parts Fried 4 | . . . 4 Impact Corruptions . | . . . . Robots Melted . | . . . . Combat Hostiles . | . . . . Parts Melted 1 | . . 1 . Heat Transferred 2405 | . 370 1443 592 Parts Sabotaged . | . . . . Parts Stolen . | . . . . Parts Stripped . | . . . . Power Chain Reactions . | . . . . Alert | -11 -10 -10 -8 ------- Run | Yrd Mat Sub Mat Maximum Alert Level 1 | . . . 1 Low Security (%) 98 | 100 100 . 96 Level 1 1 | . . . 3 Level 2 . | . . . . Level 3 . | . . . . Level 4 . | . . . . Level 5 . | . . . . High Security . | . . . . Max Security . | . . . . Peak Influence 200 | . 36 . 200 Initial . | . . . . Average 41 | . 4 . 76 Influence Increases 445 | . 65 40 340 Destroy 0b10 Robot/C 200 | . 40 40 120 Destroy 0b10 Robot/NC 10 | . 10 . . Destroy Leader 54 | . 14 . 40 Anti-Garrison Action 150 | . . . 150 Destroy Structure 1 | . 1 . . Lose Combat Pursuer 30 | . . . 30 Influence Decreases 290 | . 65 40 185 Time Decay 270 | . 65 40 165 Lost Part 20 | . . . 20 Squads Dispatched 2 | . . . 2 Investigation 1 | . . . 1 Extermination . | . . . . Reinforcement . | . . . . Assault 1 | . . . 1 Garrison . | . . . . Intercept . | . . . . Searches Triggered . | . . . . Construction Impeded . | . . . . Haulers Reinforced . | . . . . Active Scanning Responses . | . . . . Cargo Convoy Interrupts . | . . . . Stealth | -11 -10 -10 -8 --------- Run | Yrd Mat Sub Mat Distress Signals . | . . . . Communications Jammed . | . . . . Distress Signals . | . . . . Times Spotted 39 | . 5 21 13 Peak Tracking Total 6 | . 2 6 5 Tactical Retreats 3 | . . 1 2 ECM-based Alert Blocks 7 | . . 7 . Traps | -11 -10 -10 -8 ------- Run | Yrd Mat Sub Mat Traps Triggered 3 | . . 3 . Indirectly . | . . . . Trap Hack Attempts . | . . . . Triggered . | . . . . Disarmed . | . . . . Reprogrammed . | . . . . Reused . | . . . . Traps Extracted . | . . . . Installed . | . . . . Triggered . | . . . . Machines | -11 -10 -10 -8 ---------- Run | Yrd Mat Sub Mat Machines Disabled 2 | . . 1 1 Max in Single Turn 1 | . . 1 1 Garrison Access 1 | . . . 1 Machines Repaired . | . . . . Machines Dismantled . | . . . . Machines Sabotaged . | . . . . Overloaded Fab Kills . | . . . . Hacking | -11 -10 -10 -8 --------- Run | Yrd Mat Sub Mat Machines Accessed 2 | . . 1 1 Terminals . | . . . . Fabricators . | . . . . Repair Stations . | . . . . Recycling Units . | . . . . Scanalyzers . | . . . . Garrison Access 1 | . . . 1 Total Hacks 11 | . . 9 2 Successful 9 | . . 9 . Failed 2 | . . . 2 Catastrophic . | . . . . Database Lockouts . | . . . . Manual . | . . . . Terminals . | . . . . Fabricators . | . . . . Repair Stations . | . . . . Recycling Units . | . . . . Scanalyzers . | . . . . Garrison Access 2 | . . . 2 Terminal Hacks 9 | . . 9 . Record 8 | . . 8 . Proto ID Catalog 1 | . . 1 . Fabricator Hacks . | . . . . Repair Station Hacks . | . . . . Recycling Unit Hacks . | . . . . Scanalyzer . | . . . . Garrison Access Hacks . | . . . . Unauthorized Hacks . | . . . . Terminals . | . . . . Fabricators . | . . . . Repair Stations . | . . . . Recycling Units . | . . . . Scanalyzers . | . . . . Garrison Access . | . . . . Data Cores Recovered . | . . . . Used . | . . . . Hacking Detections 1 | . . . 1 Full Trace Events 1 | . . . 1 Feedback Events . | . . . . Feedback Blocked . | . . . . Robot Schematics Acquired . | . . . . Robots Built . | . . . . Authchips . | . . . . Time . | . . . . Total Robot Build Rating . | . . . . Part Schematics Acquired . | . . . . Parts Built . | . . . . Authchips . | . . . . Time . | . . . . Total Part Build Rating . | . . . . Part Studies Acquired . | . . . . Parts Repaired . | . . . . Time . | . . . . Parts Recycled . | . . . . Recycled Matter . | . . . . Retrieved Matter . | . . . . Retrieved Components . | . . . . Parts Scanalyzed . | . . . . Part Schematics Acquired . | . . . . Parts Damaged . | . . . . Bothacking | -11 -10 -10 -8 ------------ Run | Yrd Mat Sub Mat Used RIF Installer . | . . . . Robots Hacked . | . . . . Non-combat . | . . . . Combat . | . . . . Robot Hacks Applied . | . . . . Relay Couplers Released 3 | . . . 3 Machine Destruction 3 | . . . 3 Fabnet Peak Effective % . | . . . . Robots Rewired . | . . . . Allies Hacked . | . . . . Hacks Repelled . | . . . . Allies | -11 -10 -10 -8 -------- Run | Yrd Mat Sub Mat Total Allies . | . . . . Largest Group . | . . . . Highest-Rated Group . | . . . . Highest-Rated Ally . | . . . . Total Orders . | . . . . Ally Attacks . | . . . . Total Damage . | . . . . Kills . | . . . . Allies Corrupted . | . . . . Allies Melted . | . . . . Intel | -11 -10 -10 -8 ------- Run | Yrd Mat Sub Mat Active Infowar (turns) 3943 | 46 375 3037 485 Optics 156 | . . 156 . Terrain 299 | . . . 299 Structural 3931 | 46 375 3037 473 Seismic 347 | . . . 347 ECM 1249 | . 290 959 . Robot Analysis Total . | . . . . Derelict Logs Recovered 1 | . . 1 . Drone Launches . | . . . . Drone Recoveries . | . . . . Exploration | -11 -10 -10 -8 ------------- Run | Yrd Mat Sub Mat Turns Passed 3958 | 61 375 3037 485 Spaces Moved 1996 | 43 206 1505 242 Core 8 | 8 . . . Treads 1488 | . . 1246 242 Legs 422 | 35 206 181 . Wheels 67 | . . 67 . Hover . | . . . . Flight 11 | . . 11 . Fastest Speed 50 | 50 120 120 157 Average Speed 170 | 113 120 180 162 Slowest Speed 360 | 190 120 360 240 Overloaded Moves . | . . . . Propulsion Burnouts . | . . . . Robots Hopped . | . . . . Potential Cave-ins . | . . . . Cave-ins Triggered . | . . . . Exploration Rate (%) 42 | 3 59 86 20 Regions Visited 3 Branch Regions 1 Pre-discovered Areas 1 | . . 1 . Known Exits Taken 3 | 1 1 1 . Unknown Exits Taken . | . . . . Scrap Searched 12 | . . 12 . Spaces Dug . | . . . . Terrain Destroyed . | . . . . Melee . | . . . . Projectile . | . . . . AOE . | . . . . Terrain Rammed . | . . . . Walls Destroyed . | . . . . Machines Disabled . | . . . . Actions | -11 -10 -10 -8 --------- Run | Yrd Mat Sub Mat Total 2322 | 51 309 1672 290 Wait 148 | . 86 57 5 Move 1993 | 42 205 1504 242 Hop . | . . . . Pick Up 6 | 2 1 1 2 Fast Attach 28 | 7 3 10 8 Attach 7 | . . 7 . Detach 8 | . 2 5 1 Swap 8 | . . 5 3 Drop 10 | . . 5 5 Fire 114 | . 12 78 24 Melee . | . . . . Ram . | . . . . Kick . | . . . . Crush . | . . . . Escape Stasis . | . . . . Rewire . | . . . . Trap . | . . . . Miscellaneous . | . . . . Route ------- -11/Scrapyard -10/Materials (discovered 2 exits: *Mat / *Sub) -10/Subcaves (discovered 2 exits: *Mat x2) -8/Materials History --------- Turn | Location | Event 4 | -11/Scrapyard | Identified exit to Materials 4 | -11/Scrapyard | Discovered exit to Materials (range 16) 62 | -11/Scrapyard | Entered Materials 62 | -10/Materials | Evolved 1 slot: Utility x1 226 | -10/Materials | Identified exit to Materials 226 | -10/Materials | Discovered exit to Materials (range 5) 288 | -10/Materials | Identified exit to Subcaves 288 | -10/Materials | Discovered exit to Subcaves (range 6) 301 | -10/Materials | Build established: Hacker-Mutant 437 | -10/Materials | Entered Subcaves 438 | -10/Subcaves | Approached by a straggling Scientist 447 | -10/Subcaves | Learned Materials terminal intel 469 | -10/Subcaves | Shifting Twisted Machinery released Battle Rifle 477 | -10/Subcaves | Shifting Twisted Machinery released Battle Cannon 601 | -10/Subcaves | Ambushed by Subdweller buried in earth 601 | -10/Subcaves | Ambushed by Subdweller buried in earth 622 | -10/Subcaves | Ambushed by Subdweller buried in earth 627 | -10/Subcaves | Core integrity fell below 50% 680 | -10/Subcaves | Lost 3 parts (1p1n1w) 944 | -10/Subcaves | Visited Clippyterm 1043 | -10/Subcaves | Disturbed a concealed Subdweller 1116 | -10/Subcaves | Identified exit to Materials 1116 | -10/Subcaves | Discovered exit to Materials (range 11) 1466 | -10/Subcaves | Discovered exit to Materials (range 12) 1731 | -10/Subcaves | Core integrity fell below 20% 1818 | -10/Subcaves | Shifting Twisted Machinery released Sub. Machine Gun 1833 | -10/Subcaves | Shifting Twisted Machinery released Sub. Power Source 2069 | -10/Subcaves | Visited 4L-MR0's lab 2089 | -10/Subcaves | Found Gun Armor 2091 | -10/Subcaves | Attached Gun Armor, gained temporary slots: Weapon x2 2396 | -10/Subcaves | Build established: Hacker-Skirmisher 2843 | -10/Subcaves | Shifting Twisted Machinery released Sub. Laser 2876 | -10/Subcaves | Shifting Twisted Machinery released Mak. Hammer 2903 | -10/Subcaves | Learned location of Zion (-6) 2903 | -10/Subcaves | Met a Zionite searching for "candidates" 3474 | -10/Subcaves | Entered Materials 3474 | -8/Materials | Evolved 4 slots: Utility x4 3475 | -8/Materials | Loaded intel: 12 terminal locations 3574 | -8/Materials | Build established: Hacker-Mutant 3959 | -8/Materials | Self-destructed Last Messages --------------- 03878_ Acquired Imp. Sensor Array. 03901_ Y-45 Defender destroyed. 03904_ Acquired Imp. Heat Sink. 03914_ Dropped Nuclear Core. 03915_ Acquired Imp. Ion Engine. 03919_ Acquired 10 matter. 03936_ G-47 Trooper IFF system glitched. 03936_ G-47 Trooper destroyed. 03944_ C-45 Heavy ARC bursts open, deploying its payload. 03944_ G-50 Soldier unfolds itself. 03944_ L-31 Rogue unfolds itself. 03944_ G-47 Trooper unfolds itself. 03944_ B-36 Bruiser unfolds itself. 03947_ Structural Scanner destroyed. 03947_ System corrupted by crushing effect (+1). 03955_ Adv. Targeting Computer destroyed. 03955_ System corrupted by crushing effect (+2). 03959_ Overheating: Adv. Targeting Computer damaged (-6). 03959_ Overheating: Reflective Plating damaged (-13). 03959_ Overheating: Sub. Beam Cannon damaged (-12). Map ----- +----------------------------------------------------+ | + # # ???????????????????????????????? | | * # ##########???????????????????????????????? | | ##### ##########???????????????????????????????? | | ##### ##???????????????????????????????????????? | | #??## ##???????????????????????????????????????? | | #??## # ???????????????????????????????????????? | | ##### # ???????????????????????????????????????? | | ##### # ???????#??????????????????????????????? | | # ??????? ???????????????????????????????? | | + ???? ??????????????????????????????????? | | # ?????????????????????????T?????????????? | | #+##### # ?????? ?????????????+??????????????????? | | # # ??? ???????????????????????????????????? | | + ##???????????????????????????????????????? | | # ###??????????????????????????????????????? | | # #????????????? ? ????????????????????????? | | # ????#############?????????? ?????????????? | | # #???#############?????????? ?????????????? | | # ????## ##?????????#?????"T"??????? | | # ###?## """ ###????#??????????"""??????? | | # ###### """ ############# ?????????????? | | ####### ###### """ ############# ?????????????? | | + """ ### # ?????????????? | | #### ######### [%= ### g = # ?????????????? | | #### ######### ! [! * + glb %= # ?????????????? | | #### ##?????## ###@ a + ?????????????? | | #### ######### ### # ?????????????? | | ####+#############+###### !* # ?????????????? | | ## # # + # !* # ?????????????? | | ## """ #^ # # ! # !* # ?????????????? | | ## """ + """ + + !########### ? ???????????? | | ## """ # """ # # ########### ?????????????? | | ## # """ # # / !##??#?????? ?????????????? | | # "!" # # # ##??#????#??? ???????????? | | # " " # # # ! ##?#?????????????????????? | | # !"! ####### ################ ?????????????? | | #/ ####### #################?????????????? | | #####+########## #[ =%##?????????????? | | ### !*#= ###?????????????? | | ### %%+!""" ###?????????????? | | ###################=""" " " ##??????????????? | | ###################[""" !! "R" ###????#????????? | | ###????##??#??????## !! """ ##???#??????????? | | ###?#??????#???##?#################??????????????? | | ????????#?????????#################??????????????? | | | | | | | | | | | +----------------------------------------------------+ Best States ------------- Heat Dissipation 31 Energy Generation 15 Energy Capacity 265 Matter Stores 300 Matter Capacity 300 Sight Range 21 Terrain Scan Range 16 Terrain Scan Density 10 ECM Strength 1 Armor Coverage 210 Resistance: KI 35 Resistance: TH 45 Resistance: EX 35 Resistance: EM 35 Resistance: I 35 Resistance: S 35 Resistance: P 35 Evasion (%) 55 Targeting Accuracy 16 Recoil Reduction 2 Offensive Hacking 20 Item Schematics ----------------- None Robot Schematics ------------------ None Fabricated ------------ Nothing Repaired ---------- Nothing Studied --------- None Alien Tech Used ----------------- None Achievements -------------- Do Not Disturb Challenges ------------ None Game ------ Seed TripodGuidanceLeg Manual? 0 Play Time 00:20:48 Cumulative 174.7 hours Start 2026.02.05 @ 19:19:46 End 2026.02.05 @ 19:38:12 Sessions 1 Manual Loads 0 Difficulty Explorer Special Mode None Game No. 319 Rogue 216 Adventurer 15 Explorer 88 Win Type - Total 13 Types 13/0/0/0/0/0/0/0/0/0 Lore% 55 Gallery% 61 Achievement% 47 Wizard Run 0 Options --------- Layout 0 ASCII 0 Keyboard 1 Movement Numpad Keybinds 0 Fullscreen 2 Font 18/SmallcapsGlow Map View 76x50 Zoom Use 0% Tactical HUD 1 Map Filters NONE Filters NONE Steam 1 RUN: e20631b6-dc16-4491-b61e-2fd0f87fb017